[Event "Titled Tuesday Blitz March 07 Early 2023"]
[White "Bowden, Karl"]
[Black "Dilmukhametov, Artur"]
[WhiteFideId "400548"]
[BlackFideId "24179922"]
[WhiteElo "2446"]
[BlackElo "2199"]
[Result "1-0"]
[Round "02"]
[TimeControl "180+2"]
[Date "2023.03.07"]
[WhiteClock "0:00:16"]
[BlackClock "0:00:07"]

1. e4 {[%clk 0:02:59]}  e6 {[%clk 0:02:59]} 2. d3 {[%clk 0:02:59]}  d5 {[%clk 0:03:00]} 3. Qe2 {[%clk 0:03:00]}  dxe4 {[%clk 0:02:49]} 4. dxe4 {[%clk 0:02:59]}  Nc6 {[%clk 0:02:48]} 5. Nf3 {[%clk 0:02:58]}  Bc5 {[%clk 0:02:47]} 6. e5 {[%clk 0:02:49]}  f6 {[%clk 0:02:39]} 7. exf6 {[%clk 0:02:47]}  Nxf6 {[%clk 0:02:38]} 8. Nc3 {[%clk 0:02:40]}  Qe7 {[%clk 0:02:36]} 9. Be3 {[%clk 0:02:38]}  Bxe3 {[%clk 0:02:36]} 10. Qxe3 {[%clk 0:02:36]}  Bd7 {[%clk 0:02:33]} 11. O-O-O {[%clk 0:02:34]}  O-O-O {[%clk 0:02:32]} 12. Bc4 {[%clk 0:02:33]}  e5 {[%clk 0:02:31]} 13. Rhe1 {[%clk 0:02:31]}  Rhe8 {[%clk 0:02:31]} 14. Nd5 {[%clk 0:02:21]}  Nxd5 {[%clk 0:02:28]} 15. Bxd5 {[%clk 0:02:21]}  Qb4 {[%clk 0:01:43]} 16. c3 {[%clk 0:01:26]}  Qa4 {[%clk 0:01:28]} 17. Qe4 {[%clk 0:01:15]}  Qxe4 {[%clk 0:00:30]} 18. Bxe4 {[%clk 0:01:13]}  g6 {[%clk 0:00:27]} 19. h3 {[%clk 0:00:54]}  Re7 {[%clk 0:00:20]} 20. Re3 {[%clk 0:00:38]}  Rde8 {[%clk 0:00:19]} 21. Rde1 {[%clk 0:00:37]}  Na5 {[%clk 0:00:18]} 22. b3 {[%clk 0:00:36]}  b6 {[%clk 0:00:15]} 23. Kc2 {[%clk 0:00:35]}  Bf5 {[%clk 0:00:15]} 24. Bxf5+ {[%clk 0:00:34]}  gxf5 {[%clk 0:00:16]} 25. Rxe5 {[%clk 0:00:34]}  Rxe5 {[%clk 0:00:15]} 26. Rxe5 {[%clk 0:00:35]}  Rxe5 {[%clk 0:00:16]} 27. Nxe5 {[%clk 0:00:35]}  Kd8 {[%clk 0:00:16]} 28. b4 {[%clk 0:00:33]}  Nb7 {[%clk 0:00:16]} 29. Nc6+ {[%clk 0:00:22]}  Kd7 {[%clk 0:00:16]} 30. Nxa7 {[%clk 0:00:23]}  Nd6 {[%clk 0:00:16]} 31. a4 {[%clk 0:00:20]}  c6 {[%clk 0:00:14]} 32. b5 {[%clk 0:00:20]}  cxb5 {[%clk 0:00:13]} 33. axb5 {[%clk 0:00:20]}  Kc7 {[%clk 0:00:13]} 34. Kd3 {[%clk 0:00:19]}  Kb7 {[%clk 0:00:12]} 35. Nc6 {[%clk 0:00:18]}  Kc7 {[%clk 0:00:11]} 36. c4 {[%clk 0:00:17]}  Kd7 {[%clk 0:00:10]} 37. f3 {[%clk 0:00:16]}  h6 {[%clk 0:00:10]} 38. Kd4 {[%clk 0:00:15]}  h5 {[%clk 0:00:09]} 39. Kd5 {[%clk 0:00:15]}  Nf7 {[%clk 0:00:08]} 40. Ne5+ {[%clk 0:00:14]}  Ke7 {[%clk 0:00:05]} 41. Nxf7 {[%clk 0:00:14]}  Kxf7 {[%clk 0:00:06]} 42. Kc6 {[%clk 0:00:14]}  Ke7 {[%clk 0:00:07]} 43. Kxb6 {[%clk 0:00:14]}  Kd8 {[%clk 0:00:07]} 44. c5 {[%clk 0:00:15]}  Kc8 {[%clk 0:00:08]} 45. c6 {[%clk 0:00:15]}  Kb8 {[%clk 0:00:08]} 46. f4 {[%clk 0:00:16]}  h4 {[%clk 0:00:08]} 47. Kc5 {[%clk 0:00:15]}  Kc7 {[%clk 0:00:08]} 48. b6+ {[%clk 0:00:16]}  Kc8 {[%clk 0:00:08]} 49. Kd6 {[%clk 0:00:16]}  Kd8 {[%clk 0:00:08]} 50. b7 {[%clk 0:00:16]}  Ke8 {[%clk 0:00:07]} 51. b8=Q+ {[%clk 0:00:16]} 1-0


[Site "https://www.chess.com"]

[Event "Titled Tuesday Blitz March 07 Early 2023"]
[White "Aarav Dengla"]
[Black "Mim, Akter"]
[WhiteFideId "45059756"]
[BlackFideId "10263950"]
[WhiteElo "2285"]
[BlackElo "2219"]
[Result "1-0"]
[Round "02"]
[TimeControl "180+2"]
[Date "2023.03.07"]
[WhiteClock "0:01:23"]
[BlackClock "0:01:06"]

1. e4 {[%clk 0:03:00]}  c5 {[%clk 0:02:58]} 2. Nf3 {[%clk 0:02:58]}  e6 {[%clk 0:02:58]} 3. g3 {[%clk 0:02:58]}  a6 {[%clk 0:02:55]} 4. Bg2 {[%clk 0:02:57]}  b5 {[%clk 0:02:55]} 5. O-O {[%clk 0:02:55]}  Bb7 {[%clk 0:02:55]} 6. Qe2 {[%clk 0:02:54]}  g6 {[%clk 0:02:54]} 7. a4 {[%clk 0:02:54]}  b4 {[%clk 0:02:48]} 8. d4 {[%clk 0:02:53]}  cxd4 {[%clk 0:02:47]} 9. Nxd4 {[%clk 0:02:54]}  Bg7 {[%clk 0:02:45]} 10. e5 {[%clk 0:02:52]}  Bxg2 {[%clk 0:02:44]} 11. Kxg2 {[%clk 0:02:53]}  d6 {[%clk 0:02:43]} 12. Bf4 {[%clk 0:02:46]}  Qb6 {[%clk 0:02:36]} 13. Nf3 {[%clk 0:02:41]}  d5 {[%clk 0:02:34]} 14. Nbd2 {[%clk 0:02:40]}  Ne7 {[%clk 0:02:33]} 15. Nb3 {[%clk 0:02:38]}  Nbc6 {[%clk 0:02:33]} 16. h4 {[%clk 0:02:34]}  h6 {[%clk 0:02:30]} 17. Qd2 {[%clk 0:02:32]}  Rc8 {[%clk 0:02:29]} 18. a5 {[%clk 0:02:32]}  Qc7 {[%clk 0:02:27]} 19. Nc5 {[%clk 0:02:17]}  Qa7 {[%clk 0:02:21]} 20. Nd3 {[%clk 0:02:15]}  Qb8 {[%clk 0:02:08]} 21. b3 {[%clk 0:02:02]}  O-O {[%clk 0:01:39]} 22. Bxh6 {[%clk 0:01:54]}  d4 {[%clk 0:01:34]} 23. Rh1 {[%clk 0:01:32]}  Nf5 {[%clk 0:01:17]} 24. Bxg7 {[%clk 0:01:26]}  Nxg7 {[%clk 0:01:17]} 25. Qh6 {[%clk 0:01:23]}  Nf5 {[%clk 0:01:15]} 26. Qg5 {[%clk 0:01:23]}  Kg7 {[%clk 0:01:13]} 27. h5 {[%clk 0:01:22]}  Rh8 {[%clk 0:01:13]} 28. Qf6+ {[%clk 0:01:22]}  Kg8 {[%clk 0:01:06]} 29. hxg6 {[%clk 0:01:23]} 1-0


[Site "https://www.chess.com"]

[Event "Titled Tuesday Blitz March 07 Early 2023"]
[White "Gonzalez, Francisco Silva"]
[Black "Araujo, Everson De Moura"]
[WhiteFideId "1512285"]
[BlackFideId "22737197"]
[WhiteElo "2074"]
[BlackElo "2035"]
[Result "1-0"]
[Round "02"]
[TimeControl "180+2"]
[Date "2023.03.07"]
[WhiteClock "0:01:21"]
[BlackClock "0:00:12"]

1. d4 {[%clk 0:03:00]}  d5 {[%clk 0:03:00]} 2. c4 {[%clk 0:03:00]}  e6 {[%clk 0:03:00]} 3. Nc3 {[%clk 0:03:00]}  Nf6 {[%clk 0:03:00]} 4. Bg5 {[%clk 0:03:00]}  Be7 {[%clk 0:03:00]} 5. e3 {[%clk 0:03:00]}  O-O {[%clk 0:03:00]} 6. Nf3 {[%clk 0:03:00]}  a6 {[%clk 0:02:57]} 7. a3 {[%clk 0:02:59]}  dxc4 {[%clk 0:02:57]} 8. Bxc4 {[%clk 0:02:58]}  b5 {[%clk 0:02:57]} 9. Ba2 {[%clk 0:02:59]}  Bb7 {[%clk 0:02:58]} 10. Qc2 {[%clk 0:02:59]}  h6 {[%clk 0:02:56]} 11. Bh4 {[%clk 0:02:58]}  Nbd7 {[%clk 0:02:53]} 12. Rd1 {[%clk 0:02:57]}  c6 {[%clk 0:02:24]} 13. Bb1 {[%clk 0:02:56]}  Qb6 {[%clk 0:02:20]} 14. Ne5 {[%clk 0:02:54]}  g5 {[%clk 0:01:56]} 15. Bg3 {[%clk 0:02:42]}  Rfd8 {[%clk 0:01:48]} 16. Nxf7 {[%clk 0:02:38]}  Kxf7 {[%clk 0:01:40]} 17. Qg6+ {[%clk 0:02:37]}  Kf8 {[%clk 0:01:40]} 18. Qxh6+ {[%clk 0:02:32]}  Kg8 {[%clk 0:01:30]} 19. Qxg5+ {[%clk 0:02:30]}  Kf7 {[%clk 0:01:27]} 20. Bg6+ {[%clk 0:02:28]}  Kf8 {[%clk 0:01:27]} 21. Qh6+ {[%clk 0:02:25]}  Kg8 {[%clk 0:01:23]} 22. Ne4 {[%clk 0:02:08]}  Bf8 {[%clk 0:01:05]} 23. Qg5 {[%clk 0:02:06]}  Bg7 {[%clk 0:01:05]} 24. Be5 {[%clk 0:01:57]}  Nxe4 {[%clk 0:00:59]} 25. Bxe4 {[%clk 0:01:56]}  Nxe5 {[%clk 0:01:00]} 26. dxe5 {[%clk 0:01:55]}  Rxd1+ {[%clk 0:00:50]} 27. Kxd1 {[%clk 0:01:55]}  Qd8+ {[%clk 0:00:50]} 28. Qxd8+ {[%clk 0:01:51]}  Rxd8+ {[%clk 0:00:51]} 29. Ke2 {[%clk 0:01:50]}  Bxe5 {[%clk 0:00:51]} 30. b4 {[%clk 0:01:50]}  Bb2 {[%clk 0:00:46]} 31. f4 {[%clk 0:01:47]}  Bxa3 {[%clk 0:00:46]} 32. Rb1 {[%clk 0:01:47]}  Ra8 {[%clk 0:00:39]} 33. Rb3 {[%clk 0:01:46]}  Bc1 {[%clk 0:00:36]} 34. Rc3 {[%clk 0:01:42]}  Bb2 {[%clk 0:00:34]} 35. Rc2 {[%clk 0:01:41]}  Bf6 {[%clk 0:00:32]} 36. g4 {[%clk 0:01:38]}  a5 {[%clk 0:00:28]} 37. g5 {[%clk 0:01:38]}  Bg7 {[%clk 0:00:24]} 38. bxa5 {[%clk 0:01:38]}  Rxa5 {[%clk 0:00:23]} 39. Bxc6 {[%clk 0:01:38]}  Bxc6 {[%clk 0:00:20]} 40. Rxc6 {[%clk 0:01:38]}  Ra2+ {[%clk 0:00:21]} 41. Kf3 {[%clk 0:01:36]}  b4 {[%clk 0:00:19]} 42. Rxe6 {[%clk 0:01:37]}  b3 {[%clk 0:00:19]} 43. Rb6 {[%clk 0:01:36]}  b2 {[%clk 0:00:19]} 44. g6 {[%clk 0:01:34]}  Ra1 {[%clk 0:00:18]} 45. Rb8+ {[%clk 0:01:33]}  Bf8 {[%clk 0:00:19]} 46. Rxb2 {[%clk 0:01:33]}  Rf1+ {[%clk 0:00:19]} 47. Kg4 {[%clk 0:01:32]}  Rg1+ {[%clk 0:00:20]} 48. Kf5 {[%clk 0:01:32]}  Re1 {[%clk 0:00:18]} 49. e4 {[%clk 0:01:32]}  Rf1 {[%clk 0:00:16]} 50. Rb8 {[%clk 0:01:28]}  Kg7 {[%clk 0:00:16]} 51. Rb7+ {[%clk 0:01:28]}  Kg8 {[%clk 0:00:16]} 52. e5 {[%clk 0:01:27]}  Bc5 {[%clk 0:00:16]} 53. Ke4 {[%clk 0:01:24]}  Ba3 {[%clk 0:00:14]} 54. f5 {[%clk 0:01:23]}  Bc1 {[%clk 0:00:14]} 55. f6 {[%clk 0:01:22]}  Rf4+ {[%clk 0:00:14]} 56. Kd5 {[%clk 0:01:22]}  Ba3 {[%clk 0:00:11]} 57. Rb8+ {[%clk 0:01:20]}  Bf8 {[%clk 0:00:12]} 58. g7 {[%clk 0:01:21]} 1-0


[Site "https://www.chess.com"]

[Event "Titled Tuesday Blitz March 07 Early 2023"]
[White "Srebrnic, Marko"]
[Black "Kuchava, Ana"]
[WhiteFideId "14603616"]
[BlackFideId "13605348"]
[WhiteElo "2341"]
[BlackElo "2001"]
[Result "1-0"]
[Round "02"]
[TimeControl "180+2"]
[Date "2023.03.07"]
[WhiteClock "0:02:10"]
[BlackClock "0:00:01"]

1. e4 {[%clk 0:03:00]}  c5 {[%clk 0:02:47]} 2. Nf3 {[%clk 0:03:00]}  d6 {[%clk 0:02:43]} 3. g3 {[%clk 0:03:00]}  Nc6 {[%clk 0:02:34]} 4. Bg2 {[%clk 0:03:00]}  Nf6 {[%clk 0:02:31]} 5. Qe2 {[%clk 0:02:59]}  g6 {[%clk 0:02:19]} 6. O-O {[%clk 0:02:59]}  Bg7 {[%clk 0:02:18]} 7. c3 {[%clk 0:03:00]}  O-O {[%clk 0:02:16]} 8. h3 {[%clk 0:03:00]}  a6 {[%clk 0:02:13]} 9. d4 {[%clk 0:03:00]}  cxd4 {[%clk 0:02:10]} 10. cxd4 {[%clk 0:03:01]}  d5 {[%clk 0:02:10]} 11. e5 {[%clk 0:03:00]}  Ne4 {[%clk 0:02:09]} 12. Be3 {[%clk 0:02:59]}  h6 {[%clk 0:01:53]} 13. Na3 {[%clk 0:02:59]}  Bd7 {[%clk 0:01:41]} 14. Rac1 {[%clk 0:02:59]}  Rc8 {[%clk 0:01:41]} 15. Ne1 {[%clk 0:02:55]}  Ng5 {[%clk 0:01:40]} 16. h4 {[%clk 0:02:48]}  Ne6 {[%clk 0:01:37]} 17. Qd2 {[%clk 0:02:48]}  Kh7 {[%clk 0:01:17]} 18. f4 {[%clk 0:02:48]}  Nc7 {[%clk 0:00:44]} 19. Nd3 {[%clk 0:02:40]}  Bf5 {[%clk 0:00:41]} 20. Nf2 {[%clk 0:02:37]}  h5 {[%clk 0:00:38]} 21. Bf3 {[%clk 0:02:35]}  Qd7 {[%clk 0:00:35]} 22. Qe2 {[%clk 0:02:35]}  Nb4 {[%clk 0:00:18]} 23. b3 {[%clk 0:02:33]}  Nc6 {[%clk 0:00:09]} 24. Rc5 {[%clk 0:02:24]}  b6 {[%clk 0:00:07]} 25. Rcc1 {[%clk 0:02:23]}  Nb4 {[%clk 0:00:07]} 26. Kh2 {[%clk 0:02:19]}  a5 {[%clk 0:00:07]} 27. Rg1 {[%clk 0:02:17]}  Nca6 {[%clk 0:00:06]} 28. Nb5 {[%clk 0:02:14]}  Rxc1 {[%clk 0:00:05]} 29. Rxc1 {[%clk 0:02:14]}  Rc8 {[%clk 0:00:06]} 30. Rxc8 {[%clk 0:02:14]}  Qxc8 {[%clk 0:00:06]} 31. a3 {[%clk 0:02:14]}  Nc2 {[%clk 0:00:04]} 32. Bxd5 {[%clk 0:02:10]}  Nxe3 {[%clk 0:00:01]} 33. Qxe3 {[%clk 0:02:11]}  Qd7 {[%clk 0:00:01]} 34. Nc3 {[%clk 0:02:10]} 1-0


[Site "https://www.chess.com"]

[Event "Titled Tuesday Blitz March 07 Early 2023"]
[White "Devaev, Alexander"]
[Black "babbilator"]
[WhiteFideId "4169395"]
[WhiteElo "2225"]
[BlackElo "2188"]
[Result "1-0"]
[Round "02"]
[TimeControl "180+2"]
[Date "2023.03.07"]
[WhiteClock "0:01:01"]
[BlackClock "0:00:58"]

1. d4 {[%clk 0:03:00]}  Nf6 {[%clk 0:02:56]} 2. c4 {[%clk 0:03:01]}  e6 {[%clk 0:02:57]} 3. Nf3 {[%clk 0:03:01]}  Bb4+ {[%clk 0:02:55]} 4. Bd2 {[%clk 0:03:00]}  Qe7 {[%clk 0:02:51]} 5. Qc2 {[%clk 0:02:59]}  Nc6 {[%clk 0:02:40]} 6. Nc3 {[%clk 0:02:57]}  d6 {[%clk 0:02:36]} 7. e4 {[%clk 0:02:56]}  O-O {[%clk 0:02:34]} 8. a3 {[%clk 0:02:53]}  Bxc3 {[%clk 0:02:31]} 9. Bxc3 {[%clk 0:02:54]}  a5 {[%clk 0:02:22]} 10. Bd3 {[%clk 0:02:50]}  e5 {[%clk 0:02:21]} 11. d5 {[%clk 0:02:50]}  Nb8 {[%clk 0:02:21]} 12. b4 {[%clk 0:02:47]}  axb4 {[%clk 0:02:14]} 13. axb4 {[%clk 0:02:48]}  Rxa1+ {[%clk 0:02:14]} 14. Bxa1 {[%clk 0:02:48]}  Na6 {[%clk 0:02:15]} 15. Bc3 {[%clk 0:02:48]}  Nh5 {[%clk 0:01:49]} 16. g3 {[%clk 0:02:32]}  Bh3 {[%clk 0:01:43]} 17. Nd2 {[%clk 0:02:21]}  g6 {[%clk 0:01:38]} 18. Bf1 {[%clk 0:01:50]}  Bxf1 {[%clk 0:01:34]} 19. Rxf1 {[%clk 0:01:33]}  f5 {[%clk 0:01:34]} 20. f3 {[%clk 0:01:28]}  f4 {[%clk 0:01:23]} 21. g4 {[%clk 0:01:28]}  Qh4+ {[%clk 0:01:22]} 22. Kd1 {[%clk 0:01:12]}  Nf6 {[%clk 0:01:14]} 23. Nb3 {[%clk 0:01:12]}  h5 {[%clk 0:01:14]} 24. gxh5 {[%clk 0:01:10]}  gxh5 {[%clk 0:00:59]} 25. Qg2+ {[%clk 0:01:00]}  Kf7 {[%clk 0:00:58]} 26. Be1 {[%clk 0:01:01]} 1-0


[Site "https://www.chess.com"]

[Event "Titled Tuesday Blitz March 07 Early 2023"]
[White "Kiseleva, Arina"]
[Black "Golubev, Mikhail"]
[WhiteFideId "4164989"]
[BlackFideId "14100983"]
[WhiteElo "1756"]
[BlackElo "2374"]
[Result "0-1"]
[Round "02"]
[TimeControl "180+2"]
[Date "2023.03.07"]
[WhiteClock "0:00:04"]
[BlackClock "0:01:19"]

1. d4 {[%clk 0:02:56]}  Nf6 {[%clk 0:02:58]} 2. Nf3 {[%clk 0:02:55]}  d6 {[%clk 0:02:58]} 3. c4 {[%clk 0:02:54]}  g6 {[%clk 0:02:57]} 4. Nc3 {[%clk 0:02:54]}  Bg7 {[%clk 0:02:56]} 5. e4 {[%clk 0:02:54]}  O-O {[%clk 0:02:55]} 6. Be2 {[%clk 0:02:54]}  e5 {[%clk 0:02:55]} 7. d5 {[%clk 0:02:51]}  Qe8 {[%clk 0:02:53]} 8. h3 {[%clk 0:02:47]}  Nh5 {[%clk 0:02:48]} 9. g3 {[%clk 0:02:15]}  f5 {[%clk 0:02:47]} 10. exf5 {[%clk 0:02:02]}  gxf5 {[%clk 0:02:47]} 11. Ng5 {[%clk 0:01:58]}  Nf6 {[%clk 0:02:46]} 12. Bf3 {[%clk 0:01:29]}  h6 {[%clk 0:02:31]} 13. Ne6 {[%clk 0:01:26]}  Bxe6 {[%clk 0:02:31]} 14. dxe6 {[%clk 0:01:26]}  e4 {[%clk 0:02:31]} 15. Bg2 {[%clk 0:01:25]}  Qxe6 {[%clk 0:02:30]} 16. Qb3 {[%clk 0:01:21]}  Na6 {[%clk 0:02:26]} 17. Be3 {[%clk 0:01:19]}  Nc5 {[%clk 0:02:07]} 18. Bxc5 {[%clk 0:01:14]}  dxc5 {[%clk 0:02:08]} 19. O-O-O {[%clk 0:00:54]}  c6 {[%clk 0:01:59]} 20. g4 {[%clk 0:00:42]}  fxg4 {[%clk 0:01:52]} 21. hxg4 {[%clk 0:00:41]}  Nxg4 {[%clk 0:01:48]} 22. Nxe4 {[%clk 0:00:36]}  Nxf2 {[%clk 0:01:43]} 23. Nxf2 {[%clk 0:00:35]}  Rxf2 {[%clk 0:01:42]} 24. Qxb7 {[%clk 0:00:29]}  Bxb2+ {[%clk 0:01:30]} 25. Qxb2 {[%clk 0:00:11]}  Rxb2 {[%clk 0:01:29]} 26. Kxb2 {[%clk 0:00:11]}  Rb8+ {[%clk 0:01:28]} 27. Kc3 {[%clk 0:00:06]}  Qe5+ {[%clk 0:01:21]} 28. Kc2 {[%clk 0:00:04]}  Rb2+ {[%clk 0:01:19]} 0-1


[Site "https://www.chess.com"]

[Event "Titled Tuesday Blitz March 07 Early 2023"]
[White "Osuna Vega, Enrique"]
[Black "Rego, Pedro Filipe"]
[WhiteFideId "2219549"]
[BlackFideId "1904310"]
[WhiteElo "2176"]
[BlackElo "2193"]
[Result "1-0"]
[Round "02"]
[TimeControl "180+2"]
[Date "2023.03.07"]
[WhiteClock "0:00:31"]
[BlackClock "0:01:19"]

1. e4 {[%clk 0:02:59]}  c5 {[%clk 0:02:59]} 2. Nf3 {[%clk 0:02:58]}  d6 {[%clk 0:02:59]} 3. d4 {[%clk 0:02:58]}  cxd4 {[%clk 0:03:00]} 4. Nxd4 {[%clk 0:02:59]}  Nf6 {[%clk 0:03:01]} 5. f3 {[%clk 0:03:00]}  e5 {[%clk 0:03:00]} 6. Bb5+ {[%clk 0:03:00]}  Bd7 {[%clk 0:02:57]} 7. Bxd7+ {[%clk 0:02:59]}  Qxd7 {[%clk 0:02:57]} 8. Nf5 {[%clk 0:03:00]}  g6 {[%clk 0:02:57]} 9. Ne3 {[%clk 0:03:00]}  Bg7 {[%clk 0:02:57]} 10. Nc3 {[%clk 0:02:59]}  O-O {[%clk 0:02:56]} 11. Ned5 {[%clk 0:03:00]}  Nxd5 {[%clk 0:02:56]} 12. Nxd5 {[%clk 0:03:01]}  Nc6 {[%clk 0:02:54]} 13. Be3 {[%clk 0:03:00]}  Ne7 {[%clk 0:02:53]} 14. Nc3 {[%clk 0:02:53]}  Rfd8 {[%clk 0:02:52]} 15. Bg5 {[%clk 0:02:44]}  f6 {[%clk 0:02:51]} 16. Be3 {[%clk 0:02:42]}  d5 {[%clk 0:02:51]} 17. Nxd5 {[%clk 0:02:42]}  Nxd5 {[%clk 0:02:52]} 18. Qxd5+ {[%clk 0:02:41]}  Qxd5 {[%clk 0:02:52]} 19. exd5 {[%clk 0:02:41]}  Rxd5 {[%clk 0:02:53]} 20. Ke2 {[%clk 0:02:37]}  b6 {[%clk 0:02:49]} 21. Rhd1 {[%clk 0:02:36]}  Rad8 {[%clk 0:02:49]} 22. Rxd5 {[%clk 0:02:36]}  Rxd5 {[%clk 0:02:49]} 23. Rd1 {[%clk 0:02:36]}  Rxd1 {[%clk 0:02:49]} 24. Kxd1 {[%clk 0:02:37]}  Kf7 {[%clk 0:02:50]} 25. a4 {[%clk 0:02:32]}  Ke6 {[%clk 0:02:49]} 26. a5 {[%clk 0:02:31]}  bxa5 {[%clk 0:02:49]} 27. Bxa7 {[%clk 0:02:31]}  a4 {[%clk 0:02:48]} 28. Bc5 {[%clk 0:02:27]}  Kd5 {[%clk 0:02:47]} 29. Ba3 {[%clk 0:02:25]}  f5 {[%clk 0:02:46]} 30. Kd2 {[%clk 0:02:24]}  Kc4 {[%clk 0:02:46]} 31. h3 {[%clk 0:02:05]}  h5 {[%clk 0:02:44]} 32. Ke3 {[%clk 0:01:51]}  Bh6+ {[%clk 0:02:43]} 33. Ke2 {[%clk 0:01:51]}  Bg5 {[%clk 0:02:42]} 34. Bd6 {[%clk 0:01:50]}  Bf6 {[%clk 0:02:40]} 35. Ba3 {[%clk 0:01:49]}  Bd8 {[%clk 0:02:36]} 36. Bd6 {[%clk 0:01:42]}  Kd5 {[%clk 0:02:35]} 37. Ba3 {[%clk 0:01:41]}  Kc4 {[%clk 0:02:20]} 38. Bd6 {[%clk 0:01:39]}  Bf6 {[%clk 0:02:21]} 39. Ba3 {[%clk 0:01:39]}  Bg5 {[%clk 0:02:13]} 40. Bd6 {[%clk 0:01:37]}  Bf4 {[%clk 0:02:13]} 41. Ba3 {[%clk 0:01:29]}  e4 {[%clk 0:02:11]} 42. fxe4 {[%clk 0:01:29]}  fxe4 {[%clk 0:02:12]} 43. Be7 {[%clk 0:01:22]}  Be5 {[%clk 0:02:08]} 44. b3+ {[%clk 0:01:14]}  axb3 {[%clk 0:02:06]} 45. cxb3+ {[%clk 0:01:15]}  Kxb3 {[%clk 0:02:07]} 46. Ke3 {[%clk 0:01:15]}  Kc4 {[%clk 0:02:07]} 47. Kxe4 {[%clk 0:01:15]}  Bg3 {[%clk 0:02:06]} 48. Bf6 {[%clk 0:01:06]}  Kc5 {[%clk 0:02:04]} 49. Be5 {[%clk 0:01:06]}  Be1 {[%clk 0:02:03]} 50. g4 {[%clk 0:00:59]}  h4 {[%clk 0:01:52]} 51. Bf6 {[%clk 0:00:52]}  Kd6 {[%clk 0:01:49]} 52. Kf4 {[%clk 0:00:48]}  Bg3+ {[%clk 0:01:48]} 53. Kg5 {[%clk 0:00:44]}  Ke6 {[%clk 0:01:40]} 54. Kxg6 {[%clk 0:00:44]}  Be1 {[%clk 0:01:40]} 55. Bg5 {[%clk 0:00:43]}  Bc3 {[%clk 0:01:35]} 56. Kh5 {[%clk 0:00:42]}  Kf7 {[%clk 0:01:35]} 57. Bxh4 {[%clk 0:00:41]}  Bd4 {[%clk 0:01:34]} 58. Bg3 {[%clk 0:00:40]}  Bc3 {[%clk 0:01:34]} 59. Bf4 {[%clk 0:00:39]}  Bd4 {[%clk 0:01:33]} 60. Kg5 {[%clk 0:00:38]}  Bf6+ {[%clk 0:01:32]} 61. Kf5 {[%clk 0:00:38]}  Bh4 {[%clk 0:01:33]} 62. g5 {[%clk 0:00:36]}  Kg8 {[%clk 0:01:33]} 63. Kg4 {[%clk 0:00:37]}  Be1 {[%clk 0:01:33]} 64. h4 {[%clk 0:00:36]}  Bc3 {[%clk 0:01:33]} 65. h5 {[%clk 0:00:36]}  Bd4 {[%clk 0:01:33]} 66. Kf5 {[%clk 0:00:36]}  Bc3 {[%clk 0:01:33]} 67. Kg6 {[%clk 0:00:34]}  Bd4 {[%clk 0:01:32]} 68. Bd6 {[%clk 0:00:34]}  Be3 {[%clk 0:01:31]} 69. Be7 {[%clk 0:00:33]}  Bd4 {[%clk 0:01:28]} 70. Bf6 {[%clk 0:00:32]}  Bxf6 {[%clk 0:01:18]} 71. Kxf6 {[%clk 0:00:32]}  Kh8 {[%clk 0:01:19]} 72. Kf7 {[%clk 0:00:31]}  Kh7 {[%clk 0:01:18]} 73. g6+ {[%clk 0:00:31]}  Kh6 {[%clk 0:01:19]} 74. g7 {[%clk 0:00:31]} 1-0


[Site "https://www.chess.com"]

[Event "Titled Tuesday Blitz March 07 Early 2023"]
[White "Sailer, Mike"]
[Black "Matko, Ognjen"]
[WhiteFideId "2012901"]
[BlackFideId "14509717"]
[WhiteElo "2109"]
[BlackElo "2248"]
[Result "0-1"]
[Round "02"]
[TimeControl "180+2"]
[Date "2023.03.07"]
[WhiteClock "0:00:51"]
[BlackClock "0:00:45"]

1. d4 {[%clk 0:03:00]}  Nf6 {[%clk 0:02:57]} 2. Bg5 {[%clk 0:03:01]}  Ne4 {[%clk 0:02:57]} 3. Bf4 {[%clk 0:03:01]}  c5 {[%clk 0:02:57]} 4. f3 {[%clk 0:03:00]}  Nf6 {[%clk 0:02:56]} 5. d5 {[%clk 0:03:00]}  d6 {[%clk 0:02:50]} 6. e4 {[%clk 0:02:58]}  g6 {[%clk 0:02:50]} 7. c4 {[%clk 0:02:58]}  Bg7 {[%clk 0:02:49]} 8. Nc3 {[%clk 0:02:58]}  O-O {[%clk 0:02:47]} 9. Bd3 {[%clk 0:02:58]}  e6 {[%clk 0:02:42]} 10. Nge2 {[%clk 0:02:57]}  exd5 {[%clk 0:02:42]} 11. cxd5 {[%clk 0:02:58]}  Nh5 {[%clk 0:02:36]} 12. Be3 {[%clk 0:02:55]}  f5 {[%clk 0:02:36]} 13. exf5 {[%clk 0:02:50]}  Bxf5 {[%clk 0:02:30]} 14. Bxf5 {[%clk 0:02:50]}  gxf5 {[%clk 0:02:28]} 15. O-O {[%clk 0:02:47]}  f4 {[%clk 0:02:25]} 16. Bf2 {[%clk 0:02:43]}  Nd7 {[%clk 0:02:25]} 17. Re1 {[%clk 0:02:37]}  Ne5 {[%clk 0:02:19]} 18. Ne4 {[%clk 0:02:36]}  Kh8 {[%clk 0:02:05]} 19. N2c3 {[%clk 0:02:36]}  Rg8 {[%clk 0:02:02]} 20. Nb5 {[%clk 0:02:18]}  Bf8 {[%clk 0:02:00]} 21. Rc1 {[%clk 0:01:48]}  a6 {[%clk 0:01:57]} 22. Nbc3 {[%clk 0:01:40]}  b5 {[%clk 0:01:53]} 23. a4 {[%clk 0:01:37]}  b4 {[%clk 0:01:50]} 24. Nb1 {[%clk 0:01:37]}  Qe8 {[%clk 0:01:44]} 25. Nbd2 {[%clk 0:01:36]}  Qg6 {[%clk 0:01:33]} 26. g4 {[%clk 0:01:26]}  fxg3 {[%clk 0:01:27]} 27. hxg3 {[%clk 0:01:26]}  Nd3 {[%clk 0:01:19]} 28. Qe2 {[%clk 0:01:24]}  Nxc1 {[%clk 0:01:19]} 29. Rxc1 {[%clk 0:01:24]}  Bg7 {[%clk 0:01:15]} 30. Nc4 {[%clk 0:01:23]}  Nf4 {[%clk 0:01:07]} 31. Qf1 {[%clk 0:01:15]}  Rad8 {[%clk 0:01:03]} 32. Be3 {[%clk 0:00:53]}  Bh6 {[%clk 0:00:46]} 33. Qh3 {[%clk 0:00:51]}  Nxh3+ {[%clk 0:00:45]} 0-1


[Site "https://www.chess.com"]